[Event "XIII Marques de Pombal 2022"]
[Site "Pombal"]
[Date "2022.10.06"]
[Round "3.2"]
[White "Goncalves, Lucas Jordao"]
[Black "Padeiro, Jose Joao Tato"]
[Result "1-0"]
[ECO "B15"]
[WhiteElo "1849"]
[BlackElo "2215"]
[Annotator "TA"]
[PlyCount "111"]
[EventDate "2022.09.28"]
[EventType "swiss"]
[EventCountry "POR"]
[SourceTitle "playchess.com"]
[Source "ChessBase"]
[SourceQuality "1"]
[TimeControl "5400+30"]

{[%evp 14,111,37,41,32,8,58,31,25,29,56,32,25,0,0,0,0,0,0,0,0,0,0,0,0,-31,114,0,0,-289,-304,-656,-645,-706,-730,-733,-315,-312,-308,-613,-610,-584,-579,-554,-143,-390,-124,-125,-65,-135,-145,-246,-246,-241,-238,-370,-333,-436,-429,-422,-366,-361,-361,-361,-352,-350,0,-261,-210,-216,0,-307,-170,-202,-210,-197,-196,-234,0,0,202,202,202,202,185,180,552,513,525,492,1013,875,1462,738,1009,1153,1401,987,719,614]} 1. e4 {[%emt 0:00:03]} c6 {[%emt 0:00:07]} 2. d4 {[%emt 0:01:00]} d5 {[%emt 0:00:05]} 3. Nc3 {[%emt 0:00:05]} dxe4 {[%emt 0:00:05]} 4. Nxe4 {[%emt 0:00:06]} Nf6 {[%emt 0:00:03]} 5. Nxf6+ {[%emt 0:00:07]} exf6 {[%emt 0:00:06]} 6. c3 {[%emt 0:00:06]} Bd6 {[%emt 0:00:08]} 7. Bd3 {[%emt 0:00:11]} O-O {[%emt 0:00:11]} 8. Qc2 {[%emt 0:00:24] Active counter play!} Re8+ {[%emt 0:00:16] B15: Caro-Kann: 3 Nc3: 3...g6 and 3...dxe4 4 Nxe4 Nf6 5 Nxf6+ exf6.} 9. Ne2 {[%emt 0:00:09][%cal Bg1e2,Be2g3,Bg3h5][%mdl 32]} h5 {[%emt 0:00:04]} (9... f5 $11) 10. Be3 {[%emt 0:00:07]} Nd7 {[%emt 0:02:13] White is slightly better.} 11. O-O-O {[%emt 0:00:19]} b5 {[%emt 0:00:35]} 12. Ng3 {[%emt 0:00:06]} Nb6 {[%emt 0:01:00]} 13. Nxh5 {[%emt 0:00:42]} Bg4 {[%emt 0:00:23][%csl LRd1,LRh5]} 14. Be2 {[%emt 0:01:13]} Bxe2 {[%emt 0:01:59]} 15. Qxe2 {[%emt 0:00:11]} g6 {[%emt 0:00:47] [#]} 16. Ng3 $146 {[%emt 0:02:40]} ({Predecessor:} 16. g4 gxh5 17. Rhg1 Nd5 18. g5 Nf4 19. Qf3 Ng6 20. gxf6 Re6 21. Bg5 Bf8 22. Qd3 {1-0 (35) Sousa,A (2406)-Padeiro,J (2235) Evora 2021}) 16... f5 {[%emt 0:06:31]} 17. Qf3 {[%emt 0:01:04] Prevents f4.} b4 {[%emt 0:04:05]} 18. cxb4 {[%emt 0:03:40]} (18. Qxc6 $2 bxc3 19. bxc3 Rc8 $19) 18... Nd5 {[%emt 0:10:41]} 19. Bd2 {[%emt 0:01:25]} a5 {[%emt 0:03:22]} (19... Qb6 $15 {stays ahead.}) 20. b5 {[%emt 0:02:35]} (20. bxa5 $16 {And now h4 would win.} Qh4 21. Ne2) 20... Qb6 $11 {[%emt 0:05:04]} 21. bxc6 {[%emt 0:49:25][%mdl 8192]} (21. Ne2 $11) 21... Rab8 $19 {[%emt 0:04:17][%csl Gb8][%cal Rb6b2]} (21... Qxc6+ 22. Kb1 $14) 22. Bc3 {[%emt 0:00:47]} (22. b3 Qxc6+ 23. Kb2) 22... Qxc6 {[%emt 0:04:40] Strongly threatening ...Bf4+.} 23. Rhe1 {[%emt 0:05:04]} Rec8 {[%emt 0:02:38]} 24. Ne2 {[%emt 0:00:47] Against Bf4+} Qc4 {[%emt 0:12:37]} (24... Qb5 $142 {[%csl Gb8][%cal Rb5b2]} 25. Rd2 Bf4 $1 {[%mdl 512]} 26. Nxf4 Rxc3+ $1 {[%mdl 512]} 27. Qxc3 Nxc3) 25. Kb1 {[%emt 0:03:03][%cal Od1d2]} a4 {[%emt 0:17:57][%cal Ba5a4,Ba4a3,Ba3b2][%mdl 32]} 26. Rc1 $2 {[%emt 0:02:50]} (26. Ka1 Nb4 27. Bxb4 Qxb4 $19) (26. Rd2 Nxc3+ 27. Nxc3) 26... a3 {[%emt 0:01:55]} 27. Ka1 {[%emt 0:09:26]} Nxc3 {[%emt 0:13:39][%mdl 64] Remove Defender} (27... Rxb2 $2 28. Bxb2 axb2+ 29. Kxb2 Rb8+ 30. Ka1 $18) 28. Rxc3 {[%emt 0:00:30]} axb2+ {[%emt 0:00:04]} 29. Kb1 {[%emt 0:00:07]} Qb4 {[%emt 0:01:26]} (29... Qa4 $1 $19 {has better winning chances.} 30. Rxc8+ Rxc8) 30. Rd1 $17 {[%emt 0:01:25]} Re8 $40 {[%emt 0:00:33][%mdl 128] Black is up to no good.} (30... Bxh2 $6 31. g3 $14) ({Better is} 30... Qa5 $17 31. Rxc8+ Rxc8) 31. Rb3 {[%emt 0:01:53]} (31. Rc6 $1 $15) 31... Qc4 {[%emt 0:00:43]} 32. Rxb8 {[%emt 0:02:09]} (32. Nc3 $17 {was worth a try.}) 32... Bxb8 $19 {[%emt 0:00:33]} (32... Rxb8 33. Qd3 Qb4 34. f4 $17) 33. Nc3 {[%emt 0:00:07]} Rc8 {[%emt 0:00:58]} (33... Bxh2 34. Qd3 Qc7 35. Rh1 $11) 34. Kxb2 {[%emt 0:03:28]} (34. Qd3 $142 Qxc3 35. Qxc3 Rxc3 36. Kxb2) 34... Bd6 {[%emt 0:02:17]} 35. Qd3 {[%emt 0:02:03] aiming for Qxc4.} Qb4+ {[%emt 0:00:58]} 36. Kc2 {[%emt 0:00:10]} Qa3 {[%emt 0:01:26] ( -> ...Qxa2+)} 37. Rb1 {[%emt 0:04:25]} Qxa2+ {[%emt 0:00:32]} ({Don't blunder} 37... Bxh2 $2 38. g3 $19) 38. Rb2 {[%emt 0:00:08]} Qa5 {[%emt 0:01:05]} 39. Rb3 {[%emt 0:00:53]} Qa2+ {[%emt 0:01:41]} (39... Bxh2 40. Kb2 $17) 40. Rb2 {[%emt 0:00:06]} Qa1 {[%emt 0:00:15]} 41. Rb1 {[%emt 0:00:15]} Qa5 {[%emt 0:01:03]} (41... Qa4+ $142 42. Rb3 Qa2+ 43. Rb2) 42. Rb3 $1 {[%emt 0:00:05]} Qd5 {[%emt 0:00:42]} ({Inferior is} 42... Bxh2 43. Kb2 $17) (42... Bb4 $142 {...Qa2+ is the strong threat.} 43. Kb2 Ra8) 43. f3 {[%emt 0:02:12]} Bxh2 {[%emt 0:00:52]} 44. Qa6 {[%emt 0:01:16]} Qd8 {[%emt 0:00:35]} 45. Kd3 {[%emt 0:02:48] [#]} Qe8 $2 {[%emt 0:00:42]} (45... Qc7 $1 $19 {Hoping for ...Bg3.} 46. Kc2 Bf4) 46. Nd5 $11 {[%emt 0:00:32]} Kg7 {[%emt 0:01:03]} (46... Ra8 $1 $11 {and Black stays safe.} 47. Qf6 Ra2 48. Ne7+ Kh7) 47. Qf6+ $18 {[%emt 0:00:09]} Kh7 {[%emt 0:00:29] [#]} 48. Qh4+ $1 {[%emt 0:00:14]} Kg7 {[%emt 0:00:32][%cal Oe8c6]} 49. Qxh2 {[%emt 0:00:07] The board is on fire.} Rd8 $2 {[%emt 0:00:28]} (49... Qa4 {is tougher.} 50. Qe5+ Kh6 51. Qe3+ (51. Rc3 Qd1+ 52. Ke3 Re8 $17) 51... Kg7) 50. Ne3 {[%emt 0:01:16] White is clearly winning.} Qa4 {[%emt 0:00:19]} 51. Qe5+ {[%emt 0:00:26]} Kg8 {[%emt 0:00:14]} (51... Kh7 $142) 52. Rb8 {[%emt 0:00:44]} Qa6+ {[%emt 0:00:50]} 53. Kd2 {[%emt 0:00:10]} Qa2+ {[%emt 0:00:35]} 54. Nc2 {[%emt 0:00:14]} Rxb8 {[%emt 0:00:12]} 55. Qxb8+ {[%emt 0:00:06]} Kh7 {[%emt 0:00:02]} 56. Qe5 {[%emt 0:00:35] Weighted Error Value: White=0.54/Black=0.81} 1-0

[Event "XIII Marques de Pombal 2022"]
[Site "Pombal"]
[Date "2022.10.05"]
[Round "3.3"]
[White "Povshednyi, Ivan"]
[Black "Farias, David Nuno M E"]
[Result "1/2-1/2"]
[ECO "A04"]
[WhiteElo "2140"]
[BlackElo "1863"]
[Annotator "TA"]
[PlyCount "59"]
[EventDate "2022.09.28"]
[EventType "swiss"]
[EventCountry "POR"]
[SourceTitle "playchess.com"]
[Source "ChessBase"]
[SourceQuality "1"]
[TimeControl "5400+30"]

{[%evp 22,59,8,0,31,25,18,20,25,21,30,33,146,146,143,141,145,143,150,145,150,139,145,145,132,139,139,14,21,0,0,0,0,0,0,0,0,0,0,0]} 1. Nf3 {[%emt 0:00:05]} c5 {[%emt 0:00:13]} 2. g3 {[%emt 0:00:10]} Nc6 {[%emt 0:00:55]} 3. Bg2 {[%emt 0:00:13]} g6 {[%emt 0:01:07]} 4. c3 {[%emt 0:02:17]} Nf6 {[%emt 0:10:48]} 5. d4 {[%emt 0:00:23]} d5 {[%emt 0:02:17]} 6. O-O {[%emt 0:03:28]} Bg7 {[%emt 0:01:24]} 7. Ne5 {[%emt 0:05:19]} e6 {[%emt 0:10:00]} 8. Nxc6 {[%emt 0:00:57]} bxc6 {[%emt 0:00:01]} 9. Bf4 {[%emt 0:09:24]} Nh5 {[%emt 0:05:22]} 10. Be3 {[%emt 0:00:50]} cxd4 {[%emt 0:14:40]} 11. cxd4 {[%emt 0:02:31]} O-O {[%emt 0:03:20]} 12. Nc3 {[%emt 0:03:26][%cal Bb1c3,Bc3d5,Bd5e7][%mdl 32]} Nf6 {[%emt 0:12:49] D79: Fianchetto Grünfeld: Symmetrical Variation (6 0-0 c6 7 cxd5 cxd5).} 13. Qd2 {[%emt 0:03:27]} Ng4 {[%emt 0:01:33]} 14. Bf4 {[%emt 0:02:17]} e5 {[%emt 0:02:12]} (14... f6 {is interesting.} 15. h3 e5 16. dxe5 fxe5 17. Bg5 Bf6) 15. dxe5 {[%emt 0:00:57]} Nxe5 {[%emt 0:01:19]} 16. b3 {[%emt 0:07:35]} Qa5 {[%emt 0:01:31] [#]} ({Better is} 16... Re8 $14) 17. Nxd5 $1 $16 {[%emt 0:15:27][%mdl 512]} Qxd2 18. Ne7+ {[%emt 0:00:09][%mdl 64] Discovered Attack, Double Attack} Kh8 {[%emt 0:00:39]} 19. Bxd2 {[%emt 0:00:02]} Bb7 {[%emt 0:04:39]} 20. Rac1 {[%emt 0:04:36][%cal Re7c6]} Rfe8 {[%emt 0:03:34][%cal Bf8e8,Be8e2,Be2a2,Ba2b2,Bb2b3][%mdl 32]} 21. Nxc6 {[%emt 0:16:27] White is much more active.} Nxc6 {[%emt 0:00:42]} 22. Bxc6 {[%emt 0:00:07]} Bxc6 {[%emt 0:00:02]} 23. Rxc6 {[%emt 0:00:09]} Rxe2 {[%emt 0:00:03]} 24. Bc3 {[%emt 0:00:25]} ({White should try} 24. Rd6 $16) 24... Rxa2 {[%emt 0:09:04] The position is equal.} 25. Bxg7+ {[%emt 0:00:10]} Kxg7 $11 {KRR-KRR} 26. Re1 {[%emt 0:00:31]} Rb8 {[%emt 0:01:25]} 27. Re3 {[%emt 0:00:13]} Rb2 {[%emt 0:01:51]} 28. Rc7 {[%emt 0:00:14]} R8xb3 {[%emt 0:00:54]} 29. Rxb3 {[%emt 0:00:12]} Rxb3 30. Rxa7 {[%emt 0:00:08] Black defended with fortune.  Weighted Error Value: White=0.15 (very precise) /Black=0.19 (very precise)} 1/2-1/2

[Event "XIII Marques de Pombal 2022"]
[Site "Pombal"]
[Date "2022.10.05"]
[Round "3.4"]
[White "Almeida, Joao Pedro Dias"]
[Black "Veleirinho, Tomas Carvalho"]
[Result "1-0"]
[ECO "D85"]
[WhiteElo "1901"]
[BlackElo "1692"]
[Annotator "TA"]
[PlyCount "65"]
[EventDate "2022.09.28"]
[EventType "swiss"]
[EventCountry "POR"]
[SourceTitle "playchess.com"]
[Source "ChessBase"]
[SourceQuality "1"]
[TimeControl "5400+30"]

{[%evp 15,65,5,47,22,23,17,32,22,64,38,48,23,45,44,39,40,47,46,39,31,41,0,0,0,0,0,10,0,0,0,0,0,13,7,32,20,466,460,638,576,839,832,840,824,820,805,777,614,29983,29984,29980,5730]} 1. d4 {[%emt 0:00:09]} Nf6 {[%emt 0:00:51]} 2. Nf3 {[%emt 0:00:24]} g6 {[%emt 0:01:30]} 3. c4 {[%emt 0:00:09]} Bg7 {[%emt 0:01:32]} 4. Nc3 {[%emt 0:00:24]} d5 {[%emt 0:01:09]} 5. cxd5 {[%emt 0:00:16]} Nxd5 {[%emt 0:01:06]} 6. e4 {[%emt 0:00:05]} Nxc3 {[%emt 0:00:57]} 7. bxc3 {[%emt 0:00:03]} c5 {[%emt 0:00:52]} 8. Bb5+ {[%emt 0:01:51]} Bd7 {[%emt 0:05:32]} (8... Nc6 $5 {[%cal Rc5d4]}) 9. Bxd7+ {[%emt 0:00:08] D85: Exchange Grünfeld: Unusual White 7th moves and lines with 7 Nf3.} Qxd7 {[%emt 0:06:17]} 10. Be3 {[%emt 0:02:06]} Nc6 {[%emt 0:02:40]} 11. O-O {[%emt 0:00:12] [#] White is slightly better.} Qc7 $146 {[%emt 0:07:14]} (11... cxd4 12. cxd4 (12. Nxd4 Rc8) 12... O-O) ({Predecessor:} 11... O-O 12. d5 Na5 13. Bxc5 Bxc3 14. Rc1 Bb2 15. Rc2 Bg7 16. Qd2 b6 17. Bb4 Nb7 18. Rfc1 Nd6 19. e5 Nf5 20. Rc7 Qd8 21. g4 Nh6 22. h3 Re8 23. Qd4 {1-0 (23) Lopez,J (1736)-Giraldo Alvarez,S (1569) Medellin 2022}) 12. Qe2 {[%emt 0:00:44]} O-O {[%emt 0:01:40]} 13. Rac1 {[%emt 0:01:24]} b6 {[%emt 0:17:37]} 14. dxc5 {[%emt 0:00:14]} Na5 {[%emt 0:01:02]} 15. cxb6 {[%emt 0:01:33]} axb6 {[%emt 0:01:04]} 16. c4 {[%emt 0:02:15]} Nb7 {[%emt 0:06:31] Against c5} 17. Rb1 {[%emt 0:03:46]} Nc5 {[%emt 0:01:12]} 18. Bxc5 {[%emt 0:00:00]} Qxc5 {[%emt 0:02:37]} 19. Rb5 {[%emt 0:00:08][%cal Bb1b5,Bb5d5,Bd5d2,Bd2c2][%mdl 32]} Qc7 {[%emt 0:03:14]} 20. Rfb1 {[%emt 0:00:21][%cal Bf1b1,Bb1b5,Bb5d5][%mdl 32]} Ra6 {[%emt 0:00:56]} 21. Rd5 {[%emt 0:07:23]} Rfa8 {[%emt 0:07:41]} 22. Rd2 {[%emt 0:04:20]} Ra4 {[%emt 0:04:00]} 23. Rc2 {[%emt 0:02:24]} R8a5 {[%emt 0:05:56]} 24. Rb5 {[%emt 0:03:13]} Ra6 {[%emt 0:02:15]} 25. c5 {[%emt 0:01:31][%cal Bc4c5,Bc5c6,Bc6c7][%mdl 32]} Qb7 {[%emt 0:04:17][%mdl 8192] This move loses the game for Black.} (25... bxc5 $11 {and Black stays safe.} 26. Rbxc5 (26. Rcxc5 Qd8 $11) 26... Qb7) 26. c6 $18 {[%emt 0:00:37]} Qc7 {[%emt 0:00:13]} 27. Rd5 {[%emt 0:00:44]} b5 {[%emt 0:02:23]} 28. Rd7 {[%emt 0:00:29]} Qc8 {[%emt 0:00:15] [#]} 29. c7 $1 {[%emt 0:00:18] White threatens Rd8+ and mate.} Rd6 {[%emt 0:00:40] [#]} (29... Qxd7 30. c8=Q+) 30. Rxd6 $1 {[%emt 0:00:54]} exd6 {[%emt 0:00:06]} 31. Qxb5 {[%emt 0:00:21] Intending Qb8 and mate.} Ra7 {[%emt 0:00:55]} 32. Qb8 {[%emt 0:00:37]} Ra8 {[%emt 0:00:18] [#]} 33. Qxa8 $3 {[%emt 0:00:04][%mdl 512] Weighted Error Value: White=0.17 (very precise) /Black=0.68} 1-0

[Event "XIII Marques de Pombal 2022"]
[Site "Pombal"]
[Date "2022.10.05"]
[Round "3.5"]
[White "Morais, Vitor Mestre"]
[Black "Ferreira, Hugo Miguel Da Costa"]
[Result "1/2-1/2"]
[ECO "B40"]
[WhiteElo "1802"]
[BlackElo "2101"]
[Annotator "TA"]
[PlyCount "83"]
[EventDate "2022.09.28"]
[EventType "swiss"]
[EventCountry "POR"]
[SourceTitle "playchess.com"]
[Source "ChessBase"]
[SourceQuality "1"]
[TimeControl "5400+30"]

{[%evp 16,83,0,0,43,-25,-21,-18,-25,-27,-23,-30,-31,-40,-20,-28,0,0,0,0,0,-41,82,14,20,20,26,9,20,8,33,0,64,50,31,0,47,58,96,113,104,106,116,6,6,-13,-15,-14,-13,-13,-12,-17,0,0,0,0,0,0,0,0,0,0,0,0,0,-2,0,0,5,0]} 1. e4 c5 2. Nf3 e6 3. d4 cxd4 4. Nxd4 Nf6 5. Bd3 a6 6. O-O Qc7 7. Nc3 b5 8. a3 Bb7 9. Qe2 d6 {B43: Sicilian: Kan Variation: 5 Nc3.} (9... Bd6 $5 {[%cal Rd6h2]}) 10. Bg5 (10. Bd2 $14) 10... Be7 $11 11. Rad1 Nbd7 12. Kh1 O-O 13. f4 Rfe8 {[#]} 14. Rf3 $146 ({Predecessor:} 14. Qf3 Nc5 15. Rde1 h6 16. Bxf6 Bxf6 17. Nde2 Nxd3 18. cxd3 Qb6 19. Qg3 b4 20. axb4 Qxb4 {1-0 (51) Nayem,H (2074)-Wadifa,A (1565) Chess.com INT 2020}) 14... Bf8 (14... h6 $5 {[%cal Rh6g5]} 15. Bh4 Rac8 $15) 15. Rh3 {[#] aiming for Bxf6.} e5 16. fxe5 Rxe5 17. Bf4 Ree8 18. Nf5 Ne5 {Inhibits Qf3.} (18... Nc5 $15 {stays ahead.}) 19. Rg3 {White is more active.} (19. Bg5 $16 {Threatens to win with Bxf6.} Ned7 20. Qf2) 19... Ng6 20. Bg5 Nd5 21. Nxd5 Bxd5 22. Qg4 Be6 23. Rf1 d5 (23... Ne5 $11 24. Qh4 f6) 24. exd5 $1 $14 Bxd5 25. Qd1 Qb7 (25... Rac8 $11) 26. h4 $1 {[%cal Bh2h4,Bh4h5][%mdl 32] Black must now prevent h5.} Be4 27. h5 Bxf5 (27... Ne5 $2 28. Bxe4 Qxe4 29. Bf6 $18) 28. Bxf5 ({Of course not} 28. Rxf5 $6 Ne5 $11) 28... Ne5 {[#]} 29. Bf6 {This bishop pair is nice.} (29. c3 $1 $16) 29... Qc6 $11 {The position is equal.} 30. Bxe5 (30. Bh3 {seems wilder.} g6 31. Qd2 Bg7 32. Bxg7 Kxg7 33. Qf4) 30... Rxe5 31. Qf3 Qxf3 (31... Qc4 {with more complications.} 32. Bd3 Qd5 33. Qxd5 Rxd5 34. Rh3 Rg5) 32. Rgxf3 Rd8 33. g4 Rd4 34. Rf4 Rxf4 35. Rxf4 {[%mdl 4096] Endgame KRB-KRB} g6 36. hxg6 hxg6 37. Bd3 Re1+ 38. Rf1 Re6 39. Kg2 Kg7 40. Rf4 Bd6 41. Re4 Be5 42. b3 {Weighted Error Value: White=0.17 (very precise) /Black=0.16 (very precise)} 1/2-1/2

[Event "XIII Marques de Pombal 2022"]
[Site "Pombal"]
[Date "2022.10.06"]
[Round "3.6"]
[White "Ferreira, Eduardo Jose Fernand"]
[Black "Goncalves, Samuel Jesus Pereira"]
[Result "0-1"]
[ECO "B15"]
[WhiteElo "1641"]
[BlackElo "2072"]
[Annotator "TA"]
[PlyCount "74"]
[EventDate "2022.09.28"]
[EventType "swiss"]
[EventCountry "POR"]
[SourceTitle "playchess.com"]
[Source "ChessBase"]
[SourceQuality "1"]
[TimeControl "5400+30"]

{[%evp 15,74,6,11,0,17,0,0,0,11,0,0,-25,0,0,12,0,0,0,0,-7,0,-8,-4,-11,-5,-14,-10,-12,-9,-110,-123,-143,-106,-105,-103,-106,-100,-100,-99,-105,-91,-93,-81,-92,-66,-104,-101,-105,-97,-128,-128,-129,-114,-236,-245,-445,-444,-542,-542,-897,-863]} 1. e4 {[%emt 0:00:31]} c6 {[%emt 0:00:23]} 2. d4 d5 {[%emt 0:00:07]} 3. Nc3 {[%emt 0:01:46]} dxe4 {[%emt 0:00:08]} 4. Nxe4 {[%emt 0:00:17]} Nf6 {[%emt 0:01:05]} 5. Nxf6+ {[%emt 0:01:33]} exf6 {[%emt 0:00:07]} 6. Nf3 {[%emt 0:01:55]} Bd6 {[%emt 0:00:20]} 7. Be2 {[%emt 0:04:34]} O-O {[%emt 0:00:21]} 8. O-O {[%emt 0:00:22]} Bg4 {[%emt 0:05:28]} 9. Qd3 {[%emt 0:08:35][%cal Of3g5] [#] B15: Caro-Kann: 3 Nc3: 3...g6 and 3...dxe4 4 Nxe4 Nf6 5 Nxf6+ exf6.} Bh5 $146 {[%emt 0:16:07]} ({Predecessor:} 9... Re8 10. Be3 Qc7 11. g3 g6 12. Nh4 Bh3 13. Rfe1 Nd7 14. c4 c5 15. Bf1 Bxf1 16. Rxf1 cxd4 17. Bxd4 {0-1 (48) Al Jabri,R (1678)-Salim Issa,A (1880) Muscat 2019}) 10. Bd2 {[%emt 0:08:15]} Re8 {[%emt 0:04:00] [#] Strongly threatening ...Bg6.} 11. Rfe1 {[%emt 0:01:50] The position is equal.} Nd7 {[%emt 0:00:30][%cal Bb8d7,Bd7f8,Bf8e6][%mdl 32]} 12. h3 {[%emt 0:03:36]} Nf8 {[%emt 0:09:49]} 13. c4 {[%emt 0:09:44]} Ne6 {[%emt 0:06:34]} 14. Rad1 {[%emt 0:06:22]} Qc7 {[%emt 0:09:02]} 15. Qc3 {[%emt 0:13:36]} (15. Ng5 {feels hotter.} Bg6 16. Nxe6 Rxe6 17. Qc3) 15... Rad8 {[%emt 0:08:17]} 16. Nh4 {[%emt 0:12:28]} Bxe2 {[%emt 0:11:06]} 17. Rxe2 {[%emt 0:00:11]} g6 {[%emt 0:01:07]} 18. Rde1 {[%emt 0:03:27]} Bf8 {[%emt 0:01:49]} 19. Nf3 {[%emt 0:15:31]} Re7 {[%emt 0:04:11]} 20. d5 {[%emt 0:02:46]} cxd5 {[%emt 0:05:31]} 21. cxd5 {[%emt 0:00:17]} (21. Qxf6 {seems wilder.} dxc4 22. Bb4 Ree8 23. Bxf8 Rxf8 24. Ne5) 21... Rxd5 {[%emt 0:03:53]} 22. Qxc7 {[%emt 0:02:10]} (22. Qxf6 Qd8 23. Bb4 (23. Bc3 Bg7)) (22. Qxf6 $11 Qd8 23. Bb4 (23. Bc3 Bg7 $11)) 22... Rxc7 $17 {[%emt 0:00:10]} 23. Bc3 {[%emt 0:00:08]} Kg7 {[%emt 0:03:03]} 24. g3 {[%emt 0:00:57]} Bc5 {[%emt 0:03:21]} 25. Kg2 {[%emt 0:01:18]} b5 {[%emt 0:00:34]} 26. Re4 {[%emt 0:00:17]} Rcd7 {[%emt 0:01:11]} 27. a4 {[%emt 0:00:36]} bxa4 {[%emt 0:01:45]} 28. Rxa4 {[%emt 0:00:11]} Rd3 {[%emt 0:00:14]} 29. Re2 {[%emt 0:01:32]} R7d5 {[%emt 0:00:50]} 30. Nd2 {[%emt 0:00:48]} Nd4 {[%emt 0:00:44] Black is more active.} 31. Bxd4 {[%emt 0:00:43]} Bxd4 {[%emt 0:00:07]} 32. Nf3 {[%emt 0:00:25]} Bb6 {[%emt 0:00:32]} 33. Rc2 {[%emt 0:00:43]} Rb5 {[%emt 0:00:53]} 34. b4 {[%emt 0:00:32] Loses the game.} (34. Nd2 $17) 34... Rb3 $19 {[%emt 0:00:32]} 35. Rc4 $2 {[%emt 0:00:22] [#]} (35. Ne1) 35... Rb2 {[%emt 0:01:31] Black is clearly winning.} 36. Nd4 {[%emt 0:00:10]} Rd5 {[%emt 0:00:15]} 37. Nc2 {[%emt 0:00:27]} Rd2 {[%emt 0:00:14][%csl LRc2,LRf2] Weighted Error Value: White=0.39/Black=0.07 (flawless)} 0-1

[Event "XIII Marques de Pombal 2022"]
[Site "Pombal"]
[Date "2022.10.06"]
[Round "3.8"]
[White "Silva, Reinaldo Joao David "]
[Black "Mendes, Alberto Correa"]
[Result "1-0"]
[ECO "A04"]
[WhiteElo "1775"]
[BlackElo "1618"]
[Annotator "NA RC COMBH"]
[PlyCount "141"]
[EventDate "2022.09.28"]
[EventType "swiss"]
[EventCountry "POR"]
[SourceTitle "playchess.com"]
[Source "ChessBase"]
[SourceQuality "1"]
[TimeControl "5400+30"]

1. Nf3 Nc6 {[%emt 0:50:42]} 2. e3 {[%emt 0:00:09]} e5 {[%emt 0:00:24]} 3. Nc3 {[%emt 0:08:19]} d6 {[%emt 0:00:43]} 4. h3 {[%emt 0:00:28]} Be7 {[%emt 0:00:22]} 5. b3 {[%emt 0:05:31]} Nf6 {[%emt 0:00:15]} 6. Bb5 {[%emt 0:04:56]} Bd7 {[%emt 0:00:08]} 7. Bb2 {[%emt 0:02:40]} O-O {[%emt 0:00:10]} 8. Ne2 {[%emt 0:07:23]} a6 {[%emt 0:00:21]} 9. Bxc6 {[%emt 0:00:11]} Bxc6 {[%emt 0:00:18]} 10. d4 {[%emt 0:00:28]} e4 {[%emt 0:01:03]} 11. Nd2 {[%emt 0:00:42]} d5 {[%emt 0:00:12]} 12. a3 {[%emt 0:01:17]} b5 {[%emt 0:03:20]} 13. Rc1 {[%emt 0:03:39]} Rb8 {[%emt 0:03:40]} 14. c3 {[%emt 0:09:40]} Bd7 {[%emt 0:04:25]} 15. Qc2 {[%emt 0:00:27]} Bd6 {[%emt 0:01:24]} 16. Ra1 {[%emt 0:15:20]} c6 {[%emt 0:04:22]} 17. c4 {[%emt 0:02:45]} bxc4 {[%emt 0:00:39]} 18. bxc4 {[%emt 0:00:08]} Qe7 {[%emt 0:01:35]} 19. Bc3 {[%emt 0:06:19]} Rb7 {[%emt 0:02:06]} 20. Qa4 {[%emt 0:04:33]} Ra8 {[%emt 0:00:22]} 21. c5 {[%emt 0:00:32]} Bc7 {[%emt 0:00:55]} 22. Ba5 {[%emt 0:02:58]} Bxa5 {[%emt 0:01:57]} 23. Qxa5 {[%emt 0:00:02]} Rb5 {[%emt 0:00:29]} 24. Qc3 {[%emt 0:01:33]} Rab8 {[%emt 0:00:21]} 25. O-O {[%emt 0:00:46]} Nh5 {[%emt 0:04:45]} 26. Rab1 {[%emt 0:00:30]} Qg5 {[%emt 0:00:30]} 27. Rxb5 {[%emt 0:02:55]} axb5 {[%emt 0:00:15]} 28. Kh2 {[%emt 0:02:53]} f5 {[%emt 0:00:32]} 29. f4 {[%emt 0:00:48]} exf3 {[%emt 0:00:37]} 30. Nxf3 {[%emt 0:00:21]} Qd8 {[%emt 0:01:10]} 31. Ne5 {[%emt 0:00:51]} Nf6 {[%emt 0:01:23]} 32. Ng3 {[%emt 0:02:05]} g6 {[%emt 0:00:37]} 33. Qb3 {[%emt 0:01:44]} Kg7 {[%emt 0:01:02]} 34. Ra1 {[%emt 0:02:29]} Qa5 {[%emt 0:01:31]} 35. Ne2 {[%emt 0:04:02]} Be8 {[%emt 0:01:35]} 36. Nf4 {[%emt 0:02:00]} Qa4 {[%emt 0:03:34]} 37. Rb1 {[%emt 0:00:56]} Qxb3 {[%emt 0:01:16]} 38. Rxb3 {[%emt 0:00:01]} Ne4 {[%emt 0:01:00]} 39. Ne6+ {[%emt 0:00:25]} Kf6 {[%emt 0:00:31]} 40. Nc7 {[%emt 0:00:36]} Nd2 {[%emt 0:01:44]} 41. Rd3 {[%emt 0:00:50]} Nc4 {[%emt 0:00:15]} 42. Nxe8+ {[%emt 0:01:55]} Rxe8 {[%emt 0:00:08]} 43. Nxc6 {[%emt 0:00:48]} Ra8 {[%emt 0:01:08]} 44. Nb4 {[%emt 0:00:48]} Ke6 {[%emt 0:00:31]} 45. Nc2 {[%emt 0:00:21]} Na5 {[%emt 0:02:40]} 46. g3 {[%emt 0:01:41]} g5 {[%emt 0:00:15]} 47. Kg2 {[%emt 0:00:49]} h5 {[%emt 0:00:26]} 48. Kf2 {[%emt 0:00:45]} Nc6 {[%emt 0:02:01]} 49. Rb3 {[%emt 0:00:16]} Ra5 {[%emt 0:00:22]} 50. Ke2 {[%emt 0:01:02]} Kf6 {[%emt 0:01:47]} 51. Rb1 {[%emt 0:01:21]} Ke6 {[%emt 0:00:22]} 52. Kd3 {[%emt 0:00:24]} Na7 {[%emt 0:01:56]} 53. Kc3 {[%emt 0:00:46]} Ra4 {[%emt 0:00:24]} 54. Rb4 {[%emt 0:00:27]} f4 {[%emt 0:01:32]} 55. exf4 {[%emt 0:00:02]} gxf4 {[%emt 0:00:14]} 56. Rxa4 {[%emt 0:00:15]} bxa4 {[%emt 0:00:14]} 57. gxf4 {[%emt 0:00:08]} Kf5 {[%emt 0:00:17]} 58. Nb4 {[%emt 0:00:28]} Ke4 {[%emt 0:01:01]} 59. Nc2 {[%emt 0:00:52]} Nc6 {[%emt 0:00:30]} 60. h4 {[%emt 0:01:01]} Kxf4 {[%emt 0:00:44]} 61. Nb4 {[%emt 0:00:09]} Ne7 {[%emt 0:00:46]} 62. c6 {[%emt 0:01:41]} Ke4 {[%emt 0:00:19]} 63. c7 {[%emt 0:00:18]} Nc8 {[%emt 0:00:21]} 64. Nc6 {[%emt 0:00:23]} Kf4 {[%emt 0:00:20]} 65. Kb4 {[%emt 0:00:27]} Kg4 {[%emt 0:00:10]} 66. Kc5 {[%emt 0:00:28]} Kxh4 {[%emt 0:00:14]} 67. Ne5 {[%emt 0:00:18]} Kg3 {[%emt 0:00:23]} 68. Ng6 {[%emt 0:00:30]} h4 {[%emt 0:02:03]} 69. Nxh4 {[%emt 0:00:01]} Kxh4 {[%emt 0:00:08]} 70. Kxd5 {[%emt 0:00:03]} Kg5 {[%emt 0:00:17]} 71. Ke6 {[%emt 0:00:46]} 1-0